fUSD/lending_fUSD_20250115
["ID","MTS","AMOUNT","RATE_DAILY","PERIOD"]
[349101510,1736968277078,-746.83845404,0.000435,35]
[349101511,1736968277089,-15387.1239229,0.000435,35]
[349101512,1736968277122,-500.0,0.00043013,4]
[349101513,1736968277131,-5524.19999998,0.000435,35]
[349101514,1736968277149,-566.03399279,0.00043013,4]
[349101515,1736968277159,-19379.37720721,0.000435,35]
[349101516,1736968277171,-1689.57596369,0.000435,35]
[349101554,1736968832315,-5890.9066,0.000119,2]
[349101555,1736968832384,-500.0,0.00011999,2]
[349101556,1736968832454,-150.0,0.00011999,2]
[349101557,1736968832522,-999.0,0.00011999,2]
[349101559,1736969023701,158.06,0.00010137,2]
[349101573,1736969154644,1687.37422237,0.0001,2]
[349101574,1736969163711,3903.50463219,0.0001,2]
[349101575,1736969243383,248.58385871,0.000101,2]
[349101576,1736969262263,3344.49728673,0.0001,2]
[349101577,1736969262290,1165.90951906,0.0001,2]
[349101579,1736969278884,8505.8480531,0.0001,2]
[349101587,1736969326486,629.76368638,8e-05,2]
[349101591,1736969366293,-210.646416,9.95e-05,2]
[349101592,1736969366314,-500.0,9.973e-05,2]
[349101593,1736969366334,-500.0,9.973e-05,2]
[349101594,1736969366355,-300.0,9.999e-05,2]
[349101595,1736969366377,-2512.25021577,0.0001,2]
[349101606,1736969432067,-150.0,9.999e-05,2]
[349101607,1736969432076,-2142.43245301,0.0001,2]
[349101608,1736969432156,-3600.0,0.0001,2]
[349101609,1736969432171,-6789.07,0.0001,2]
[349101610,1736969432183,-3071.705,0.0001,2]
[349101611,1736969432194,-2864.03000014,0.0001,2]
[349101612,1736969432205,-2658.28394069,0.0001,2]
[349101613,1736969432215,-4072.02339887,0.0001,2]
[349101614,1736969432246,-16194.02468716,0.0001,2]
[349101615,1736969432255,-3378.72453377,0.0001,2]
[349101616,1736969432266,-623.44006736,0.0001,2]
[349101617,1736969432344,-344.08273063,0.0001,2]
[349101618,1736969432355,-1964.66,0.0001,2]
[349101635,1736969437978,-16371.29186431,0.0001,2]
[349101636,1736969437988,-333384.64746274,0.0001,2]
[349101637,1736969437999,-246572.7289487,0.0001,2]
[349101638,1736969438010,-966.00000034,0.0001,2]
[349101639,1736969438021,-706.10326874,0.0001,2]
[349101640,1736969438033,-2076.934354,0.0001,2]
[349101641,1736969438116,-1815.97474894,0.0001,2]
[349101642,1736969438149,-845.88342142,0.0001,2]
[349101668,1736969440121,-9309.51192353,0.0001,2]
[349101669,1736969440161,-10049.0,0.0001,2]
[349101670,1736969440173,-8636.75009996,0.0001,2]
[349101671,1736969440221,-16731.90116918,0.0001,2]
[349101672,1736969440234,-1431.9734557,0.0001,2]
[349101673,1736969440311,-43252.9454643,0.0001,2]
[349101674,1736969440322,-3003.0,0.0001,2]
[349101675,1736969440333,-18546.6103854,0.0001,2]
[349101676,1736969440403,-689.41820677,0.0001,2]
[349101677,1736969440496,-2775.94000765,0.0001,2]
[349101715,1736969443090,-1170.0,0.0001,2]
[349101716,1736969443102,-4980.53559695,0.0001,2]
[349101717,1736969443114,-33052.07865688,0.0001,2]
[349101719,1736969443667,-433.63,0.0001,2]
[349101720,1736969443679,-1408.91188919,0.0001,2]
[349101721,1736969443692,-3977.44,0.0001,2]
[349101722,1736969443704,-29717.53930283,0.0001,2]
[349101723,1736969443716,-1395.71527919,0.0001,2]
[349101724,1736969443727,-4906.62420437,0.0001,2]
[349101725,1736969443738,-597.04856955,0.0001,2]
[349101726,1736969443753,-3313.2047406,0.0001,2]
[349101727,1736969443765,-3584.80000002,0.0001,2]
[349101732,1736969446062,-21164.23190852,0.0001,2]
[349101733,1736969446073,-848.34305106,0.0001,2]
[349101734,1736969446084,-4162.81424458,0.0001,2]
[349101735,1736969446151,-29884.149,0.0001,2]
[349101736,1736969446169,-4611.31513577,0.0001,2]
[349101737,1736969446249,-557.6099985,0.0001,2]
[349101738,1736969446261,-8487.90099864,0.0001,2]
[349101739,1736969446336,-6991.20000002,0.0001,2]
[349101740,1736969446347,-521.56177382,0.0001,2]
[349101741,1736969446359,-194378.66353045,0.0001,2]
[349101742,1736969446413,-2368.97429585,0.0001,2]
[349101743,1736969446425,-350.0,0.0001,2]
[349101747,1736969521140,4077.98631362,9.801e-05,2]
[349101748,1736969588856,1215.4,0.00023,120]
[349101765,1736970632161,-3401.79276287,9.703e-05,2]
[349101766,1736970632174,-800.0,9.703e-05,2]
[349101767,1736970632186,-4272.20723713,9.703e-05,2]
[349101768,1736970632195,-206.46962424,9.799e-05,2]
[349101769,1736970632205,-1989.241,9.8e-05,2]
[349101770,1736970632214,-150.216,9.8e-05,2]
[349101771,1736970632223,-150.0,9.999e-05,2]
[349101772,1736970632233,-10649.83238924,0.0001,2]
[349101773,1736970632244,-17170.5,0.0001,2]
[349101774,1736970632255,-5023.56754699,0.0001,2]
[349101775,1736970632270,-4413.51222981,0.0001,2]
[349101776,1736970632281,-30869.85971156,0.0001,2]
[349101777,1736970632292,-855897.72838555,0.0001,2]
[349101778,1736970632302,-214.16126307,0.0001,2]
[349101779,1736970632312,-2615.93609332,0.0001,2]
[349101780,1736970632323,-813.24147842,0.0001,2]
[349101781,1736970632336,-187.13781673,0.0001,2]
[349101782,1736970632345,-143145.92696909,0.0001,2]
[349101783,1736970632354,-500.0,0.0001,3]
[349101784,1736970632364,-3000.0,0.0001,2]
[349101785,1736970632373,-162.2,0.00010137,2]
[349101786,1736970632383,-1716.76727026,0.000105,2]
[349101787,1736970632393,-160.52818472,0.000109,2]
[349101788,1736970632404,-1100.0,0.000109,3]
[349101789,1736970632414,-160.10165234,0.000109,2]
[349101790,1736970632424,-58864.66659435,0.00010999,2]
[349101791,1736970632434,-255.0,0.00010999,2]
[349101792,1736970632443,-12249.30780326,0.00011,2]
[349101793,1736970632453,-550.0,0.00011,2]
[349101794,1736970632463,-19178.60850684,0.00011,2]
[349101795,1736970632472,-219.95376552,0.00011089,2]
[349101796,1736970632482,-33786.73797935,0.00011099,2]
[349101797,1736970632492,-2640.96,0.00012,2]
[349101798,1736970632502,-219.58,0.00012329,2]
[349101800,1736970632511,-500.0,0.00012623,2]
[349101802,1736970632521,-192.35,0.00012779,2]
[349101804,1736970632530,-500.0,0.00012821,2]
[349101806,1736970632539,-13740.6078745,0.000129,7]
[349101807,1736970632549,-600.0,0.00013,2]
[349101808,1736970632559,-192.25,0.00013509,2]
[349101809,1736970632570,-33786.73797926,0.00013568,2]
[349101810,1736970632579,-250.0,0.00013678,2]
[349101811,1736970632589,-184.6,0.000138,2]
[349101812,1736970632599,-9842.03815715,0.0001439,2]
[349101813,1736970632608,-214.94834759,0.000149,2]
[349101814,1736970632617,-1236.18022445,0.00015,2]
[349101816,1736970632627,-650.0,0.00015,2]
[349101818,1736970632636,-3000.0,0.00015,2]
[349101820,1736970632645,-192.35,0.00015043,2]
[349101822,1736970632655,-300.0,0.00015068,2]
[349101824,1736970632664,-23900.0,0.00015412,2]
[349101826,1736970632674,-597.54,0.00016037,2]
[349101828,1736970632683,-6296.34,0.00016116,2]
[349101830,1736970632692,-300.0,0.00016438,2]
[349101832,1736970632702,-150.0,0.00016807,2]
[349101834,1736970632713,-250.0,0.00016807,2]
[349101836,1736970632722,-33786.73797926,0.00017236,2]
[349101838,1736970632732,-192.35,0.00017307,2]
[349101840,1736970632742,-160.52818471,0.000174,2]
[349101842,1736970632752,-1500.0,0.00017876,2]
[349101844,1736970632763,-166.38489779,0.000179,2]
[349101845,1736970632772,-2751.0,0.00017923,2]
[349101846,1736970632782,-999.0,0.00019499,2]
[349101847,1736970632794,-41497.18703771,0.000195,2]
[349101848,1736970632803,-192.35,0.0001957,2]
[349101849,1736970632813,-432.74387396,0.0002,4]
[349101850,1736970632823,-3000.0,0.0002,2]
[349101851,1736970632833,-33786.73797926,0.00020904,2]
[349101852,1736970632842,-1000.0,0.00021182,2]
[349101853,1736970632851,-454.31,0.00021605,2]
[349101854,1736970632860,-192.35,0.00021834,2]
[349101856,1736970632870,-597.54,0.00022451,2]
[349101858,1736970632879,-158.06,0.00022822,2]
[349101860,1736970632889,-1000.0,0.0002383,2]
[349101861,1736970632898,-160.52818471,0.000239,2]
[349101863,1736970632907,-192.35,0.00024098,2]
[349101865,1736970632916,-454.31,0.00024306,2]
[349101867,1736970632925,-33786.73797926,0.00024572,2]
[349101869,1736970632934,-3000.0,0.00025,2]
[349101871,1736970632943,-3219.0,0.00026,3]
[349101895,1736970633156,-192.35,0.00026362,2]
[349101897,1736970633166,-1000.0,0.00026478,2]
[349101899,1736970633175,-160.10165233,0.0002665,2]
[349101900,1736970633185,-454.31,0.00027006,120]
[349101903,1736970633195,-7685.380654,0.00028,60]
[349101904,1736970633204,-33786.73797926,0.00028241,2]
[349101907,1736970633214,-192.35,0.00028626,2]
[349101909,1736970633224,-1000.0,0.00029126,2]
[349101911,1736970633234,-454.31,0.00029707,120]
[349101912,1736970633243,-3000.0,0.0003,2]
[349101914,1736970633254,-160.52818471,0.000304,2]
[349101916,1736970633263,-192.35,0.0003089,2]
[349101918,1736970633274,-5556.0,0.000315,5]
[349101920,1736970633284,-1000.0,0.00031773,2]
[349101922,1736970633294,-1600.0,0.000319,11]
[349101924,1736970633304,-33786.73797926,0.00031909,2]
[349101926,1736970633313,-228.1,0.000323,2]
[349101928,1736970633323,-454.31,0.00032407,120]
[349101930,1736970633337,-192.35,0.00033154,2]
[349101932,1736970633347,-150.0,0.00034548,10]
[349101935,1736970633357,-1989.241,0.0003485,40]
[349101936,1736970633367,-3000.0,0.00035,2]
[349101939,1736970633377,-192.35,0.00035418,2]
[349101941,1736970633387,-158.06,0.00035507,2]
[349101943,1736970633396,-33786.73797926,0.00035577,2]
[349101945,1736970633407,-160.52818471,0.000369,2]
[349101946,1736970633416,-192.35,0.00037682,2]
[349101949,1736970633425,-33786.73797926,0.00039245,2]
[349101951,1736970633435,-762.0,0.000395,120]
[349101953,1736970633444,-253.02531015,0.000399,3]
[349101954,1736970633453,-253.02530994,0.000399,3]
[349101956,1736970633463,-253.02530994,0.000399,3]
[349101958,1736970633472,-253.02530994,0.000399,3]
[349101960,1736970633482,-253.02530994,0.000399,3]
[349101962,1736970633491,-253.02530994,0.000399,3]
[349101964,1736970633500,-253.02530994,0.000399,3]
[349101967,1736970633510,-253.02530994,0.000399,3]
[349101969,1736970633522,-253.02530994,0.000399,3]
[349101971,1736970633531,-253.02530994,0.000399,3]
[349101973,1736970633540,-253.02530994,0.000399,3]
[349101975,1736970633550,-253.02530994,0.000399,3]
[349101977,1736970633559,-253.02530994,0.000399,3]
[349101979,1736970633568,-253.02530994,0.000399,3]
[349101981,1736970633577,-253.02530994,0.000399,3]
[349101982,1736970633587,-253.02530994,0.000399,3]
[349101984,1736970633596,-253.02530994,0.000399,3]
[349101986,1736970633606,-253.02530994,0.000399,3]
[349101988,1736970633615,-253.02530994,0.000399,3]
[349101990,1736970633631,-253.02530994,0.000399,3]
[349101992,1736970633640,-253.02530994,0.000399,3]
[349101994,1736970633649,-253.02530994,0.000399,3]
[349101996,1736970633660,-253.02530994,0.000399,3]
[349101998,1736970633674,-253.02530994,0.000399,3]
[349102000,1736970633683,-253.02530994,0.000399,3]
[349102002,1736970633693,-253.02530994,0.000399,3]
[349102004,1736970633706,-192.35,0.00039945,2]
[349102007,1736970633717,-9128.73417445,0.00039998,120]
[349102008,1736970633726,-8698.51779462,0.00039998,120]
[349102010,1736970633736,-2050.0,0.0004,117]
[349102012,1736970633746,-200000.0,0.0004,30]
[349102015,1736970633758,-207.18,0.0004,2]
[349102017,1736970633768,-250.0,0.00040319,2]
[349102019,1736970633779,-253.02530994,0.00040486,3]
[349102020,1736970633789,-1581.918136,0.000408,30]
[349102022,1736970633799,-500.0,0.00040899,31]
[349102024,1736970633808,-500.0,0.00040899,31]
[349102026,1736970633817,-500.0,0.00040899,31]
[349102028,1736970633826,-488.18557031,0.00040899,31]
[349102030,1736970633839,-281.91537418,0.00040899,31]
[349102032,1736970633848,-164.98994692,0.00040899,31]
[349102034,1736970633858,-428.0970991,0.00040899,31]
[349102036,1736970633867,-500.0,0.00040899,31]
[349102039,1736970633877,-500.0,0.00040899,31]
[349102041,1736970633888,-462.90242866,0.00040899,31]
[349102043,1736970633897,-200000.0,0.000409,120]
[349102045,1736970633907,-400000.0,0.000409,60]
[349102047,1736970633916,-2200.0,0.000409,14]
[349102049,1736970633925,-2500.0,0.00041095,120]
[349102051,1736970633935,-184.6,0.00041198,2]
[349102053,1736970633944,-325.38,0.00041298,120]
[349102055,1736970633954,-163.84,0.00041337,2]
[349102056,1736970633963,-200.0,0.000416,2]
[349102058,1736970633972,-253.02530994,0.00041624,3]
[349102060,1736970633982,-2500.0,0.00041643,120]
[349102063,1736970633992,-2500.0,0.00042191,120]
[349102064,1736970634002,-192.35,0.00042209,2]
[349102066,1736970634012,-591.726,0.00042289,2]
[349102068,1736970634021,-2800.0,0.000424,15]
[349102070,1736970634031,-156.14,0.00042467,2]
[349102072,1736970634040,-2487.0,0.00042498,62]
[349102074,1736970634050,-500.0,0.000425,15]
[349102076,1736970634059,-500.0,0.000426,15]
[349102078,1736970634069,-201.4832799,0.00042628,4]
[349102080,1736970634079,-500.0,0.000427,15]
[349102082,1736970634088,-9440.6052,0.00042713,2]
[349102084,1736970634099,-4512.2,0.00042727,117]
[349102086,1736970634110,-2500.0,0.00042739,120]
[349102088,1736970634121,-253.02530994,0.00042762,4]
[349102090,1736970634132,-500.0,0.000428,15]
[349102092,1736970634141,-1000.0,0.000428,7]
[349102095,1736970634152,-96986.66644243,0.0004288,2]
[349102097,1736970634163,-1115.0,0.000429,15]
[349102099,1736970634172,-1000.0,0.000429,7]
[349102101,1736970634182,-301.63219179,0.00042912,30]
[349102102,1736970634192,-170.54017368,0.00042913,30]
[349102105,1736970634202,-166.38489778,0.00042913,2]
[349102107,1736970634211,-276.94810041,0.00042913,2]
[349102108,1736970634221,-33786.73797926,0.00042913,15]
[349102111,1736970634231,-395.15230049,0.00043,120]
[349102115,1736970634267,-2791.25765681,0.00043,120]
[349102117,1736970634278,-813.5900427,0.00043,120]
[349102119,1736970634288,-4922.51365479,0.00043,117]
[349102121,1736970634297,-3000.0,0.00043,10]
[349102123,1736970634307,-171.61969154,0.00043013,4]
[349102125,1736970634317,-500.0,0.00043013,4]
[349102127,1736970634327,-500.0,0.00043013,4]
[349102130,1736970634336,-500.0,0.00043013,4]
[349102132,1736970634346,-500.0,0.00043013,4]
[349102134,1736970634355,-500.0,0.00043013,4]
[349102136,1736970634365,-500.0,0.00043013,4]
[349102137,1736970634375,-500.0,0.00043013,4]
[349102140,1736970634384,-500.0,0.00043013,4]
[349102141,1736970634394,-640.97464923,0.00043013,4]
[349102143,1736970634405,-500.0,0.00043013,4]
[349102146,1736970634415,-500.0,0.00043013,4]
[349102147,1736970634424,-500.0,0.00043013,4]
[349102149,1736970634433,-500.0,0.00043013,4]
[349102151,1736970634442,-500.0,0.00043013,4]
[349102153,1736970634452,-500.0,0.00043013,4]
[349102155,1736970634462,-500.0,0.00043013,4]
[349102157,1736970634471,-500.0,0.00043013,4]
[349102159,1736970634480,-500.0,0.00043013,4]
[349102161,1736970634490,-261.05787205,0.00043013,4]
[349102163,1736970634500,-151.0,0.00043013,14]
[349102165,1736970634510,-500.0,0.00043013,4]
[349102167,1736970634526,-500.0,0.00043013,4]
[349102169,1736970634535,-500.0,0.00043013,4]
[349102172,1736970634546,-500.0,0.00043013,4]
[349102173,1736970634555,-500.0,0.00043013,4]
[349102176,1736970634565,-500.0,0.00043013,4]
[349102178,1736970634574,-500.0,0.00043013,4]
[349102179,1736970634584,-500.0,0.00043013,4]
[349102181,1736970634594,-500.0,0.00043013,4]
[349102183,1736970634603,-500.0,0.00043013,4]
[349102185,1736970634613,-500.0,0.00043013,4]
[349102187,1736970634623,-500.0,0.00043013,4]
[349102189,1736970634633,-500.0,0.00043013,4]
[349102192,1736970634643,-500.0,0.00043013,4]
[349102194,1736970634653,-500.0,0.00043013,4]
[349102196,1736970634662,-500.0,0.00043013,4]
[349102198,1736970634671,-500.0,0.00043013,4]
[349102200,1736970634681,-500.0,0.00043013,4]
[349102201,1736970634690,-500.0,0.00043013,4]
[349102203,1736970634700,-500.0,0.00043013,4]
[349102205,1736970634709,-500.0,0.00043013,4]
[349102207,1736970634719,-500.0,0.00043013,4]
[349102209,1736970634729,-500.0,0.00043013,4]
[349102210,1736970634738,-500.0,0.00043013,4]
[349102211,1736970634747,-500.0,0.00043013,4]
[349102212,1736970634756,-500.0,0.00043013,4]
[349102213,1736970634766,-500.0,0.00043013,4]
[349102214,1736970634776,-500.0,0.00043013,4]
[349102215,1736970634785,-500.0,0.00043013,4]
[349102216,1736970634795,-500.0,0.00043013,4]
[349102218,1736970634804,-500.0,0.00043013,4]
[349102220,1736970634814,-500.0,0.00043013,4]
[349102221,1736970634826,-500.0,0.00043013,4]
[349102224,1736970634835,-500.0,0.00043013,4]
[349102226,1736970634845,-500.0,0.00043013,4]
[349102228,1736970634854,-586.79057806,0.00043013,4]
[349102230,1736970634864,-500.0,0.00043013,4]
[349102232,1736970634873,-500.0,0.00043013,4]
[349102234,1736970634882,-500.0,0.00043013,4]
[349102236,1736970634892,-500.0,0.00043013,4]
[349102238,1736970634902,-500.0,0.00043013,4]
[349102240,1736970634911,-500.0,0.00043013,4]
[349102242,1736970634920,-500.0,0.00043013,4]
[349102244,1736970634929,-500.0,0.00043013,4]
[349102246,1736970634939,-500.0,0.00043013,4]
[349102248,1736970634948,-399.52451975,0.00043013,4]
[349102250,1736970634957,-386.21673063,0.00043013,4]
[349102254,1736970634993,-113.78326937,0.00043013,4]
[349102256,1736970635002,-410.93686032,0.00043013,4]
[349102259,1736970635019,-89.06313968,0.00043013,4]
[349102261,1736970635029,-500.0,0.00043013,4]
[349102263,1736970635039,-64.15686032,0.00043013,4]
[349102265,1736970635051,-293.49962424,0.00043013,4]
[349102564,1736970638001,-150.0,0.000416,2]
[349102566,1736970638012,-1000.0,0.00043,7]
[349102567,1736970638021,-142.34351544,0.00043013,4]
[349102568,1736970638031,-500.0,0.00043013,4]
[349102569,1736970638041,-500.0,0.00043013,4]
[349102570,1736970638051,-509.49366118,0.00043013,4]
[349102571,1736970638060,-500.0,0.00043013,4]
[349102572,1736970638069,-500.0,0.00043013,4]
[349102573,1736970638079,-500.0,0.00043013,4]
[349102574,1736970638089,-500.0,0.00043013,4]
[349102575,1736970638098,-500.0,0.00043013,4]
[349102576,1736970638107,-500.0,0.00043013,4]
[349102577,1736970638117,-500.0,0.00043013,4]
[349102578,1736970638128,-500.0,0.00043013,4]
[349102579,1736970638138,-500.0,0.00043013,4]
[349102580,1736970638148,-592.09,0.00043013,4]
[349102581,1736970638158,-500.0,0.00043013,4]
[349102582,1736970638167,-500.0,0.00043013,4]
[349102583,1736970638177,-500.0,0.00043013,4]
[349102584,1736970638187,-500.0,0.00043013,4]
[349102585,1736970638197,-500.0,0.00043013,4]
[349102586,1736970638206,-500.0,0.00043013,4]
[349102587,1736970638216,-345.09359248,0.00043013,4]
[349102588,1736970638226,-503.76210988,0.00043013,4]
[349102589,1736970638235,-500.0,0.00043013,4]
[349102591,1736970638245,-383.51714345,0.00043013,4]
[349102593,1736970638254,-500.0,0.00043013,4]
[349102595,1736970638263,-500.0,0.00043013,4]
[349102597,1736970638273,-500.0,0.00043013,4]
[349102599,1736970638283,-500.0,0.00043013,4]
[349102601,1736970638292,-500.0,0.00043013,4]
[349102603,1736970638301,-500.0,0.00043013,4]
[349102605,1736970638311,-500.0,0.00043013,4]
[349102607,1736970638321,-314.03614739,0.00043013,4]
[349102610,1736970638333,-500.0,0.00043013,4]
[349102612,1736970638342,-500.0,0.00043013,4]
[349102614,1736970638351,-500.0,0.00043013,4]
[349102616,1736970638361,-500.0,0.00043013,4]
[349102618,1736970638372,-500.0,0.00043013,4]
[349102620,1736970638382,-500.0,0.00043013,4]
[349102622,1736970638391,-500.0,0.00043013,4]
[349102623,1736970638401,-500.0,0.00043013,4]
[349102626,1736970638411,-500.0,0.00043013,4]
[349102627,1736970638420,-500.0,0.00043013,4]
[349102629,1736970638430,-500.0,0.00043013,4]
[349102631,1736970638440,-500.0,0.00043013,4]
[349102633,1736970638450,-547.58171466,0.00043013,4]
[349102635,1736970638459,-500.0,0.00043013,4]
[349102637,1736970638468,-500.0,0.00043013,4]
[349102639,1736970638479,-500.0,0.00043013,4]
[349102641,1736970638489,-500.0,0.00043013,4]
[349102643,1736970638498,-500.0,0.00043013,4]
[349102645,1736970638508,-500.0,0.00043013,4]
[349102647,1736970638518,-329.36552531,0.00043013,4]
[349102649,1736970638528,-538.46774256,0.00043013,4]
[349102651,1736970638537,-500.0,0.00043013,4]
[349102653,1736970638546,-500.0,0.00043013,4]
[349102655,1736970638555,-500.0,0.00043013,4]
[349102657,1736970638565,-500.0,0.00043013,4]
[349102659,1736970638575,-500.0,0.00043013,4]
[349102661,1736970638584,-500.0,0.00043013,4]
[349102663,1736970638593,-424.77,0.00043013,4]
[349102665,1736970638602,-500.0,0.00043013,4]
[349102667,1736970638612,-500.0,0.00043013,4]
[349102670,1736970638621,-500.0,0.00043013,4]
[349102672,1736970638631,-500.0,0.00043013,4]
[349102673,1736970638640,-500.0,0.00043013,4]
[349102676,1736970638650,-501.41876286,0.00043013,4]
[349102678,1736970638659,-500.0,0.00043013,4]
[349102680,1736970638669,-510.20269529,0.00043013,4]
[349102681,1736970638678,-500.0,0.00043013,4]
[349102684,1736970638688,-500.0,0.00043013,4]
[349102685,1736970638697,-500.0,0.00043013,4]
[349102687,1736970638707,-500.0,0.00043013,4]
[349102690,1736970638716,-500.0,0.00043013,4]
[349102691,1736970638726,-500.0,0.00043013,4]
[349102693,1736970638735,-500.0,0.00043013,4]
[349102695,1736970638744,-500.0,0.00043013,4]
[349102697,1736970638754,-500.0,0.00043013,4]
[349102699,1736970638763,-500.0,0.00043013,4]
[349102701,1736970638774,-500.0,0.00043013,4]
[349102703,1736970638783,-500.0,0.00043013,4]
[349102705,1736970638793,-500.0,0.00043013,4]
[349102707,1736970638802,-500.0,0.00043013,4]
[349102709,1736970638811,-306.77926988,0.00043013,4]
[349102711,1736970638820,-500.0,0.00043013,4]
[349102713,1736970638829,-500.0,0.00043013,4]
[349102715,1736970638839,-500.0,0.00043013,4]
[349102717,1736970638850,-286.40985432,0.00043013,4]
[349102736,1736970639021,-500.0,0.00043013,4]
[349102738,1736970639032,-500.0,0.00043013,4]
[349102740,1736970639041,-500.0,0.00043013,4]
[349102742,1736970639051,-500.0,0.00043013,4]
[349102744,1736970639061,-500.0,0.00043013,4]
[349102747,1736970639071,-500.0,0.00043013,4]
[349102749,1736970639081,-500.0,0.00043013,4]
[349102750,1736970639090,-500.0,0.00043013,4]
[349102752,1736970639100,-500.0,0.00043013,4]
[349102754,1736970639109,-500.0,0.00043013,4]
[349102757,1736970639119,-500.0,0.00043013,4]
[349102759,1736970639130,-500.0,0.00043013,4]
[349102761,1736970639142,-500.0,0.00043013,4]
[349102762,1736970639151,-500.0,0.00043013,4]
[349102764,1736970639161,-500.0,0.00043013,4]
[349102767,1736970639171,-500.0,0.00043013,4]
[349102768,1736970639180,-500.0,0.00043013,4]
[349102771,1736970639190,-500.0,0.00043013,4]
[349102772,1736970639200,-500.0,0.00043013,4]
[349102774,1736970639210,-500.0,0.00043013,4]
[349102776,1736970639220,-500.0,0.00043013,4]
[349102779,1736970639230,-500.0,0.00043013,4]
[349102781,1736970639240,-500.0,0.00043013,4]
[349102783,1736970639249,-500.0,0.00043013,4]
[349102784,1736970639259,-500.0,0.00043013,4]
[349102787,1736970639269,-513.82876711,0.00043013,4]
[349102789,1736970639279,-500.0,0.00043013,4]
[349102790,1736970639287,-500.0,0.00043013,4]
[349102793,1736970639297,-500.0,0.00043013,4]
[349102795,1736970639306,-501.15187847,0.00043013,4]
[349102797,1736970639316,-500.0,0.00043013,4]
[349102799,1736970639329,-500.0,0.00043013,4]
[349102801,1736970639338,-500.0,0.00043013,4]
[349102802,1736970639347,-500.0,0.00043013,4]
[349102804,1736970639356,-500.0,0.00043013,4]
[349102806,1736970639366,-500.0,0.00043013,4]
[349102808,1736970639375,-500.0,0.00043013,4]
[349102810,1736970639385,-500.0,0.00043013,4]
[349102812,1736970639395,-500.0,0.00043013,4]
[349102815,1736970639406,-500.0,0.00043013,4]
[349102816,1736970639415,-500.0,0.00043013,4]
[349102818,1736970639425,-500.0,0.00043013,4]
[349102820,1736970639435,-500.0,0.00043013,4]
[349102821,1736970639446,-500.0,0.00043013,4]
[349102822,1736970639455,-500.0,0.00043013,4]
[349102823,1736970639465,-500.84384395,0.00043013,4]
[349102824,1736970639475,-500.0,0.00043013,4]
[349102825,1736970639485,-500.0,0.00043013,4]
[349102826,1736970639495,-500.0,0.00043013,4]
[349102828,1736970639504,-500.0,0.00043013,4]
[349102830,1736970639515,-500.0,0.00043013,4]
[349102832,1736970639526,-500.0,0.00043013,4]
[349102834,1736970639536,-503.74285368,0.00043013,4]
[349102836,1736970639545,-500.0,0.00043013,4]
[349102838,1736970639555,-500.0,0.00043013,4]
[349102839,1736970639564,-500.0,0.00043013,4]
[349102842,1736970639574,-620.17120095,0.00043013,4]
[349102844,1736970639584,-254.70338062,0.00043013,4]
[349102852,1736970639656,-245.29661938,0.00043013,4]
[349102854,1736970639666,-502.63566222,0.00043013,4]
[349102856,1736970639676,-500.0,0.00043013,4]
[349102858,1736970639686,-500.0,0.00043013,4]
[349102860,1736970639696,-507.78849304,0.00043013,4]